[Event "*** Titled Tuesday Blitz"]
[Site "Chess.com"]
[Date "2021.03.09"]
[Round "4"]
[White "Balla_Tamas"]
[Black "mbojan"]
[Result "0-1"]
[WhiteElo "2475"]
[BlackElo "2628"]
[TimeControl "180+1"]
[EndTime "10:41:19 PST"]
[Termination "mbojan won by resignation"]

1. d4 {[%clk 0:03:00.9]} 1... g6 {[%clk 0:03:00.9]} 2. e4 {[%clk 0:02:59.2]}
2... Bg7 {[%clk 0:02:59.6]} 3. Nc3 {[%clk 0:02:58.6]} 3... d6 {[%clk 0:03:00.2]}
4. f4 {[%clk 0:02:56.8]} 4... a6 {[%clk 0:03:00.3]} 5. Nf3 {[%clk 0:02:55]} 5...
b5 {[%clk 0:03:00.5]} 6. Bd3 {[%clk 0:02:55]} 6... Nd7 {[%clk 0:03:00.5]} 7. e5
{[%clk 0:02:53.7]} 7... c5 {[%clk 0:03:00.7]} 8. exd6 {[%clk 0:02:49]} 8... exd6
{[%clk 0:02:46.9]} 9. Ne4 {[%clk 0:02:33.2]} 9... Ndf6 {[%clk 0:02:28.9]} 10.
dxc5 {[%clk 0:02:11.7]} 10... dxc5 {[%clk 0:02:28.5]} 11. Nxc5 {[%clk
0:02:06.5]} 11... Ne7 {[%clk 0:02:25.7]} 12. Ne4 {[%clk 0:01:58.7]} 12... O-O
{[%clk 0:01:51.1]} 13. O-O {[%clk 0:01:41]} 13... Qb6+ {[%clk 0:01:51.3]} 14.
Kh1 {[%clk 0:01:38.4]} 14... Ng4 {[%clk 0:01:44.6]} 15. Qe2 {[%clk 0:01:32.9]}
15... Nf5 {[%clk 0:01:42.5]} 16. Ne5 {[%clk 0:01:09]} 16... Nxe5 {[%clk
0:01:33]} 17. fxe5 {[%clk 0:01:09]} 17... Bxe5 {[%clk 0:01:33.6]} 18. Bg5 {[%clk
0:01:07.2]} 18... Bxb2 {[%clk 0:01:29.4]} 19. Rab1 {[%clk 0:01:04.8]} 19... Bg7
{[%clk 0:01:28]} 20. a4 {[%clk 0:01:00.1]} 20... Bd7 {[%clk 0:01:26.1]} 21. axb5
{[%clk 0:00:58.5]} 21... axb5 {[%clk 0:01:26.2]} 22. Bxb5 {[%clk 0:00:58.1]}
22... Nd4 {[%clk 0:01:08.6]} 23. Bxd7 {[%clk 0:00:40.1]} 23... Qxb1 {[%clk
0:01:07.8]} 24. Qd3 {[%clk 0:00:39.9]} 24... Qxc2 {[%clk 0:00:54.4]} 25. Qxc2
{[%clk 0:00:38.9]} 25... Nxc2 {[%clk 0:00:55.3]} 26. Nf6+ {[%clk 0:00:39.4]}
26... Kh8 {[%clk 0:00:49.8]} 27. Bc6 {[%clk 0:00:38.3]} 27... Ra1 {[%clk
0:00:45.6]} 28. Rxa1 {[%clk 0:00:33.2]} 28... Nxa1 {[%clk 0:00:46.5]} 29. h4
{[%clk 0:00:33.2]} 29... h5 {[%clk 0:00:45]} 30. Nd7 {[%clk 0:00:30.7]} 30...
Rc8 {[%clk 0:00:43.7]} 31. Bd5 {[%clk 0:00:30.5]} 31... Kg8 {[%clk 0:00:35.4]}
32. Nf6+ {[%clk 0:00:28.9]} 32... Bxf6 {[%clk 0:00:35.6]} 33. Bxf6 {[%clk
0:00:28.6]} 33... Nc2 {[%clk 0:00:36]} 34. Kh2 {[%clk 0:00:27.5]} 34... Ne3
{[%clk 0:00:35.2]} 35. Bf3 {[%clk 0:00:26.8]} 35... Ng4+ {[%clk 0:00:34.1]} 36.
Bxg4 {[%clk 0:00:26.5]} 36... hxg4 {[%clk 0:00:35]} 37. Kg3 {[%clk 0:00:27.1]}
37... Rc4 {[%clk 0:00:35.7]} 38. Bg5 {[%clk 0:00:25.7]} 38... f5 {[%clk
0:00:33.7]} 39. Bf4 {[%clk 0:00:24.9]} 39... Kf7 {[%clk 0:00:34.3]} 0-1

[Event "*** Titled Tuesday Blitz"]
[Site "Chess.com"]
[Date "2021.03.09"]
[Round "4"]
[White "Trankuilizer"]
[Black "Elshan1985"]
[Result "0-1"]
[WhiteElo "2581"]
[BlackElo "2884"]
[TimeControl "180+1"]
[EndTime "10:41:22 PST"]
[Termination "Elshan1985 won by resignation"]

1. e4 {[%clk 0:03:00.9]} 1... e6 {[%clk 0:02:59.2]} 2. d4 {[%clk 0:03:00.7]}
2... d5 {[%clk 0:03:00.1]} 3. Nd2 {[%clk 0:03:01.2]} 3... c5 {[%clk 0:02:59.1]}
4. exd5 {[%clk 0:03:00.1]} 4... Qxd5 {[%clk 0:02:59.7]} 5. Ngf3 {[%clk
0:03:00.9]} 5... cxd4 {[%clk 0:02:59.8]} 6. Bc4 {[%clk 0:03:01.4]} 6... Qd8
{[%clk 0:02:58.6]} 7. O-O {[%clk 0:03:02]} 7... Nc6 {[%clk 0:02:58.9]} 8. Nb3
{[%clk 0:03:02.5]} 8... a6 {[%clk 0:02:57.9]} 9. Nbxd4 {[%clk 0:03:03]} 9...
Nxd4 {[%clk 0:02:58.7]} 10. Nxd4 {[%clk 0:03:03.6]} 10... Qc7 {[%clk 0:02:59.3]}
11. Bb3 {[%clk 0:03:03.5]} 11... Bd6 {[%clk 0:02:59.7]} 12. Kh1 {[%clk
0:03:02.7]} 12... Ne7 {[%clk 0:02:58.3]} 13. Qf3 {[%clk 0:03:02.6]} 13... Bd7
{[%clk 0:02:51.9]} 14. Bg5 {[%clk 0:03:02.4]} 14... Ng6 {[%clk 0:02:51.1]} 15.
Rad1 {[%clk 0:03:02.2]} 15... h6 {[%clk 0:02:45.4]} 16. Bc1 {[%clk 0:02:58.8]}
16... O-O {[%clk 0:02:36.9]} 17. c3 {[%clk 0:02:58]} 17... Rad8 {[%clk
0:02:24.5]} 18. Bc2 {[%clk 0:02:49.6]} 18... Ne5 {[%clk 0:02:24.5]} 19. Qh5
{[%clk 0:02:49.2]} 19... f5 {[%clk 0:02:01.6]} 20. Rde1 {[%clk 0:02:27.1]} 20...
Rf6 {[%clk 0:01:58]} 21. Bb3 {[%clk 0:02:15]} 21... Nc4 {[%clk 0:01:48.1]} 22.
Qe2 {[%clk 0:01:45.6]} 22... b5 {[%clk 0:01:46.2]} 23. a4 {[%clk 0:01:45.5]}
23... e5 {[%clk 0:01:42.2]} 24. axb5 {[%clk 0:01:43.5]} 24... axb5 {[%clk
0:01:43.1]} 25. Nf3 {[%clk 0:01:38.7]} 25... Be6 {[%clk 0:01:37.2]} 26. Rd1
{[%clk 0:01:37.8]} 26... Bf7 {[%clk 0:01:30.9]} 27. h3 {[%clk 0:01:18.3]} 27...
Re8 {[%clk 0:01:30]} 28. Rfe1 {[%clk 0:01:17.7]} 28... Bc5 {[%clk 0:01:21.6]}
29. Nd2 {[%clk 0:01:13.8]} 29... Bb6 {[%clk 0:01:17.4]} 30. Nf1 {[%clk
0:01:13.6]} 30... f4 {[%clk 0:01:10.8]} 31. Qf3 {[%clk 0:01:02.6]} 31... Nd6
{[%clk 0:01:03.2]} 32. Bxf7+ {[%clk 0:01:00.9]} 32... Qxf7 {[%clk 0:01:04.1]}
33. Qc6 {[%clk 0:00:52]} 33... Bxf2 {[%clk 0:00:59.8]} 34. Re2 {[%clk
0:00:51.8]} 34... Nf5 {[%clk 0:00:51.5]} 35. Qxb5 {[%clk 0:00:51.7]} 35... Bb6
{[%clk 0:00:41.1]} 36. Rxe5 {[%clk 0:00:41]} 36... Rxe5 {[%clk 0:00:34.9]} 37.
Qxe5 {[%clk 0:00:41.9]} 37... Qh5 {[%clk 0:00:35]} 38. Rd3 {[%clk 0:00:33.2]}
38... Ng3+ {[%clk 0:00:33.3]} 0-1

[Event "*** Titled Tuesday Blitz"]
[Site "Chess.com"]
[Date "2021.03.09"]
[Round "4"]
[White "ViktoriyaTarasova"]
[Black "Leonid_Starozhilov"]
[Result "0-1"]
[WhiteElo "2325"]
[BlackElo "2696"]
[TimeControl "180+1"]
[EndTime "10:41:23 PST"]
[Termination "Leonid_Starozhilov won on time"]

1. d4 {[%clk 0:03:00.9]} 1... g6 {[%clk 0:03:00.9]} 2. c4 {[%clk 0:03:01.1]}
2... d6 {[%clk 0:03:01.3]} 3. e4 {[%clk 0:03:01.5]} 3... Bg7 {[%clk 0:03:01.9]}
4. Nc3 {[%clk 0:03:01.8]} 4... Nc6 {[%clk 0:03:02.3]} 5. Nge2 {[%clk 0:02:56.1]}
5... Nf6 {[%clk 0:03:02.3]} 6. d5 {[%clk 0:02:52.7]} 6... Ne5 {[%clk 0:02:58]}
7. f4 {[%clk 0:02:49.5]} 7... Ned7 {[%clk 0:02:52.7]} 8. g3 {[%clk 0:02:33.6]}
8... c6 {[%clk 0:02:47.5]} 9. Bg2 {[%clk 0:02:33]} 9... O-O {[%clk 0:02:48.1]}
10. Be3 {[%clk 0:02:17.6]} 10... Ng4 {[%clk 0:02:39.7]} 11. Bd4 {[%clk
0:02:17.5]} 11... cxd5 {[%clk 0:02:36.3]} 12. cxd5 {[%clk 0:02:07.8]} 12... Bxd4
{[%clk 0:02:29.5]} 13. Qxd4 {[%clk 0:02:06.8]} 13... Qb6 {[%clk 0:02:29.8]} 14.
Qxb6 {[%clk 0:01:36.8]} 14... Nxb6 {[%clk 0:02:28.2]} 15. Bf3 {[%clk 0:01:14]}
15... Bd7 {[%clk 0:02:16.2]} 16. Bxg4 {[%clk 0:01:05.2]} 16... Bxg4 {[%clk
0:02:15.4]} 17. b3 {[%clk 0:01:05.6]} 17... Rac8 {[%clk 0:02:10]} 18. Kd2 {[%clk
0:01:03.2]} 18... Bxe2 {[%clk 0:01:47.9]} 19. Nxe2 {[%clk 0:01:01.6]} 19... f5
{[%clk 0:01:48.8]} 20. Ke3 {[%clk 0:00:28]} 20... fxe4 {[%clk 0:01:43.5]} 21.
Kxe4 {[%clk 0:00:27.8]} 21... Rc5 {[%clk 0:01:34]} 22. Rhd1 {[%clk 0:00:26.2]}
22... Nd7 {[%clk 0:01:20.8]} 23. Rac1 {[%clk 0:00:15]} 23... Nf6+ {[%clk
0:01:16]} 24. Kf3 {[%clk 0:00:15.6]} 24... Rfc8 {[%clk 0:01:16.6]} 25. Rxc5
{[%clk 0:00:13.6]} 25... Rxc5 {[%clk 0:01:17.5]} 26. b4 {[%clk 0:00:10.4]} 26...
Rc2 {[%clk 0:00:59.3]} 27. a4 {[%clk 0:00:10]} 27... Kf7 {[%clk 0:00:51]} 28. b5
{[%clk 0:00:09.3]} 28... Rc4 {[%clk 0:00:43.8]} 29. a5 {[%clk 0:00:08.6]} 29...
Rc5 {[%clk 0:00:43.8]} 30. b6 {[%clk 0:00:04.3]} 30... Rxa5 {[%clk 0:00:43.7]}
31. bxa7 {[%clk 0:00:04.2]} 31... Rxa7 {[%clk 0:00:44.6]} 32. g4 {[%clk
0:00:03.9]} 32... Ra3+ {[%clk 0:00:44.3]} 33. Kg2 {[%clk 0:00:02.9]} 33... Nxg4
{[%clk 0:00:44.9]} 34. Rb1 {[%clk 0:00:01.9]} 34... Ne3+ {[%clk 0:00:41.6]} 35.
Kf2 {[%clk 0:00:02.3]} 35... Nxd5 {[%clk 0:00:40.5]} 36. Rxb7 {[%clk 0:00:01.6]}
36... Ra2 {[%clk 0:00:40.6]} 37. Ke1 {[%clk 0:00:01.4]} 37... Ra1+ {[%clk
0:00:40.3]} 0-1

[Event "*** Titled Tuesday Blitz"]
[Site "Chess.com"]
[Date "2021.03.09"]
[Round "4"]
[White "SergeyShtyka"]
[Black "jd001"]
[Result "1-0"]
[WhiteElo "2433"]
[BlackElo "2236"]
[TimeControl "180+1"]
[EndTime "10:41:23 PST"]
[Termination "SergeyShtyka won by resignation"]

1. e4 {[%clk 0:03:00.9]} 1... e6 {[%clk 0:02:59.7]} 2. Nf3 {[%clk 0:03:00.3]}
2... d5 {[%clk 0:02:59.6]} 3. e5 {[%clk 0:03:00.4]} 3... c5 {[%clk 0:02:59]} 4.
b4 {[%clk 0:03:00.5]} 4... c4 {[%clk 0:02:59.2]} 5. c3 {[%clk 0:03:00.1]} 5...
a5 {[%clk 0:02:55.5]} 6. b5 {[%clk 0:02:58.9]} 6... a4 {[%clk 0:02:54.9]} 7. d3
{[%clk 0:02:58.7]} 7... cxd3 {[%clk 0:02:53.6]} 8. Bxd3 {[%clk 0:02:57.8]} 8...
Bd7 {[%clk 0:02:53.2]} 9. O-O {[%clk 0:02:55.2]} 9... Qa5 {[%clk 0:02:52.1]} 10.
Qe2 {[%clk 0:02:49.8]} 10... Ne7 {[%clk 0:02:50]} 11. Bd2 {[%clk 0:02:46.2]}
11... Qb6 {[%clk 0:02:47.9]} 12. Be3 {[%clk 0:02:45.2]} 12... Qa5 {[%clk
0:02:47.4]} 13. c4 {[%clk 0:02:31.3]} 13... dxc4 {[%clk 0:02:46.5]} 14. Bxc4
{[%clk 0:02:31.2]} 14... Nf5 {[%clk 0:02:40.4]} 15. Bd2 {[%clk 0:02:25]} 15...
Bb4 {[%clk 0:02:38.5]} 16. Bxb4 {[%clk 0:02:21.3]} 16... Qxb4 {[%clk 0:02:38]}
17. Nbd2 {[%clk 0:02:21.3]} 17... O-O {[%clk 0:02:34.6]} 18. Rab1 {[%clk
0:02:18.1]} 18... Qe7 {[%clk 0:02:24.4]} 19. Ne4 {[%clk 0:02:13.3]} 19... Rd8
{[%clk 0:02:18.8]} 20. Rfd1 {[%clk 0:02:10.3]} 20... Be8 {[%clk 0:02:09.5]} 21.
h3 {[%clk 0:02:09]} 21... Nd7 {[%clk 0:02:04.1]} 22. Nd6 {[%clk 0:02:05.7]}
22... Nb6 {[%clk 0:02:02.1]} 23. Nxf5 {[%clk 0:02:02.2]} 23... exf5 {[%clk
0:02:01.6]} 24. Bd3 {[%clk 0:01:58.3]} 24... g6 {[%clk 0:01:59.2]} 25. Qe3
{[%clk 0:01:48]} 25... Nd5 {[%clk 0:01:57.7]} 26. Qh6 {[%clk 0:01:45.8]} 26...
Nc3 {[%clk 0:01:49]} 27. Ng5 {[%clk 0:01:39.5]} 27... f6 {[%clk 0:01:48.9]} 28.
exf6 {[%clk 0:01:38.3]} 28... Qc7 {[%clk 0:01:40.3]} 29. f7+ {[%clk 0:01:26.5]}
29... Qxf7 {[%clk 0:01:36.6]} 30. Nxf7 {[%clk 0:01:24.6]} 30... Bxf7 {[%clk
0:01:36.7]} 31. Bc2 {[%clk 0:01:07.2]} 31... Nxd1 {[%clk 0:01:24.6]} 32. Rxd1
{[%clk 0:01:06.1]} 32... Rxd1+ {[%clk 0:01:20]} 33. Bxd1 {[%clk 0:01:05.3]}
33... Bxa2 {[%clk 0:01:20.6]} 34. Bf3 {[%clk 0:00:57.2]} 34... a3 {[%clk
0:01:18.5]} 35. Bxb7 {[%clk 0:00:45.6]} 35... Rb8 {[%clk 0:01:18]} 36. Qd2
{[%clk 0:00:39.9]} 36... Bf7 {[%clk 0:01:11.7]} 37. Bd5 {[%clk 0:00:38.8]} 1-0

[Event "*** Titled Tuesday Blitz"]
[Site "Chess.com"]
[Date "2021.03.09"]
[Round "4"]
[White "thechesscorner64"]
[Black "tgpgoat"]
[Result "0-1"]
[WhiteElo "2375"]
[BlackElo "2173"]
[TimeControl "180+1"]
[EndTime "10:41:23 PST"]
[Termination "tgpgoat won by checkmate"]

1. e4 {[%clk 0:03:00.9]} 1... c5 {[%clk 0:02:59.5]} 2. Nf3 {[%clk 0:02:59.7]}
2... Nc6 {[%clk 0:02:59.5]} 3. Bb5 {[%clk 0:02:57.2]} 3... g6 {[%clk 0:02:57.4]}
4. O-O {[%clk 0:02:56]} 4... Bg7 {[%clk 0:02:57.2]} 5. c3 {[%clk 0:02:55.7]}
5... e5 {[%clk 0:02:57]} 6. d4 {[%clk 0:02:52.6]} 6... cxd4 {[%clk 0:02:55.7]}
7. cxd4 {[%clk 0:02:52.9]} 7... Nxd4 {[%clk 0:02:55.4]} 8. Nxd4 {[%clk
0:02:51.3]} 8... exd4 {[%clk 0:02:56.3]} 9. Bf4 {[%clk 0:02:50.6]} 9... a6
{[%clk 0:02:52.2]} 10. Bc4 {[%clk 0:02:49.4]} 10... d6 {[%clk 0:02:51.3]} 11.
Nd2 {[%clk 0:02:43.2]} 11... Ne7 {[%clk 0:02:50.8]} 12. Nf3 {[%clk 0:02:31.5]}
12... Nc6 {[%clk 0:02:50.5]} 13. Qb3 {[%clk 0:01:58.8]} 13... O-O {[%clk
0:02:43.4]} 14. Ng5 {[%clk 0:01:58.8]} 14... Qe7 {[%clk 0:02:37]} 15. Bd5 {[%clk
0:01:46.2]} 15... Ne5 {[%clk 0:02:36.1]} 16. Rfe1 {[%clk 0:01:32.5]} 16... h6
{[%clk 0:02:27.6]} 17. Nf3 {[%clk 0:01:31]} 17... Nxf3+ {[%clk 0:02:26.7]} 18.
Qxf3 {[%clk 0:01:31.9]} 18... Be6 {[%clk 0:02:24]} 19. Qg3 {[%clk 0:01:31.1]}
19... Rfd8 {[%clk 0:02:16.8]} 20. h4 {[%clk 0:01:28.6]} 20... Bxd5 {[%clk
0:02:01.2]} 21. exd5 {[%clk 0:01:29.5]} 21... Qf6 {[%clk 0:02:01.5]} 22. Rac1
{[%clk 0:01:22.2]} 22... Qf5 {[%clk 0:02:00.4]} 23. Qf3 {[%clk 0:01:07]} 23...
Rac8 {[%clk 0:01:46.4]} 24. Rxc8 {[%clk 0:01:05.3]} 24... Rxc8 {[%clk
0:01:47.3]} 25. Bxd6 {[%clk 0:01:05.4]} 25... Qxf3 {[%clk 0:01:46.4]} 26. gxf3
{[%clk 0:01:06.3]} 26... Rd8 {[%clk 0:01:45.7]} 27. Ba3 {[%clk 0:00:54.4]} 27...
Rxd5 {[%clk 0:01:43.9]} 28. Re8+ {[%clk 0:00:54.9]} 28... Kh7 {[%clk 0:01:43.4]}
29. Re7 {[%clk 0:00:55.5]} 29... d3 {[%clk 0:01:31.5]} 30. Re1 {[%clk
0:00:46.1]} 30... b5 {[%clk 0:01:30.9]} 31. Rd1 {[%clk 0:00:45.2]} 31... a5
{[%clk 0:01:30.7]} 32. Be7 {[%clk 0:00:44.6]} 32... Bxb2 {[%clk 0:01:29.3]} 33.
Kf1 {[%clk 0:00:44.3]} 33... Bc3 {[%clk 0:01:28.5]} 34. f4 {[%clk 0:00:41.3]}
34... b4 {[%clk 0:01:28.5]} 35. Kg2 {[%clk 0:00:40.6]} 35... a4 {[%clk
0:01:26.6]} 36. Kf3 {[%clk 0:00:41]} 36... d2 {[%clk 0:01:20.5]} 37. Ke4 {[%clk
0:00:37.3]} 37... Rd7 {[%clk 0:01:19.9]} 38. Bc5 {[%clk 0:00:35.7]} 38... f5+
{[%clk 0:01:18.1]} 39. Ke3 {[%clk 0:00:34.3]} 39... Kg7 {[%clk 0:01:18.1]} 40.
h5 {[%clk 0:00:30]} 40... g5 {[%clk 0:01:16.5]} 41. fxg5 {[%clk 0:00:29.6]}
41... hxg5 {[%clk 0:01:17.4]} 42. f3 {[%clk 0:00:26.1]} 42... f4+ {[%clk
0:01:14.5]} 43. Ke4 {[%clk 0:00:25.5]} 43... a3 {[%clk 0:01:12.5]} 44. Kf5
{[%clk 0:00:24.1]} 44... Rd5+ {[%clk 0:01:10.4]} 45. Ke6 {[%clk 0:00:23.2]}
45... Rxc5 {[%clk 0:01:09.8]} 46. h6+ {[%clk 0:00:23.4]} 46... Kxh6 {[%clk
0:01:09.6]} 47. Kf7 {[%clk 0:00:23.5]} 47... g4 {[%clk 0:01:06.7]} 48. fxg4
{[%clk 0:00:20.4]} 48... Kg5 {[%clk 0:01:06.6]} 49. Rh1 {[%clk 0:00:18.4]} 49...
Rd5 {[%clk 0:01:05.5]} 50. Ke6 {[%clk 0:00:18.1]} 50... d1=Q {[%clk 0:01:04.9]}
51. Rh5+ {[%clk 0:00:18.6]} 51... Kxg4 {[%clk 0:01:04.6]} 52. Rxd5 {[%clk
0:00:19.5]} 52... Qxd5+ {[%clk 0:01:03.9]} 53. Kxd5 {[%clk 0:00:20.4]} 53... f3
{[%clk 0:01:04.2]} 54. Kc4 {[%clk 0:00:21.3]} 54... f2 {[%clk 0:01:04.3]} 55.
Kb3 {[%clk 0:00:22.2]} 55... f1=Q {[%clk 0:01:03.9]} 56. Kc2 {[%clk 0:00:23.1]}
56... Qe2+ {[%clk 0:01:03.6]} 57. Kb3 {[%clk 0:00:24]} 57... Qb2+ {[%clk
0:01:03.5]} 58. Ka4 {[%clk 0:00:23.9]} 58... Qxa2 {[%clk 0:01:02.7]} 59. Kb5
{[%clk 0:00:24.8]} 59... b3 {[%clk 0:01:02.8]} 60. Kc4 {[%clk 0:00:25.7]} 60...
b2+ {[%clk 0:01:01.6]} 61. Kb5 {[%clk 0:00:26.6]} 61... b1=Q+ {[%clk 0:01:01.5]}
62. Ka6 {[%clk 0:00:25.8]} 62... Qab3 {[%clk 0:00:59.3]} 63. Ka7 {[%clk
0:00:26.7]} 63... Qa4# {[%clk 0:00:59.5]} 0-1

[Event "*** Titled Tuesday Blitz"]
[Site "Chess.com"]
[Date "2021.03.09"]
[Round "4"]
[White "gatocorbis"]
[Black "kuhlmann"]
[Result "0-1"]
[WhiteElo "2106"]
[BlackElo "2404"]
[TimeControl "180+1"]
[EndTime "10:41:25 PST"]
[Termination "kuhlmann won on time"]

1. e4 {[%clk 0:03:00.9]} 1... a5 {[%clk 0:03:00.9]} 2. Nf3 {[%clk 0:02:58.8]}
2... g6 {[%clk 0:03:00.9]} 3. d4 {[%clk 0:02:57.2]} 3... Bg7 {[%clk 0:03:00.8]}
4. Nc3 {[%clk 0:02:56.8]} 4... d6 {[%clk 0:03:00.2]} 5. Be3 {[%clk 0:02:55.4]}
5... Nd7 {[%clk 0:03:00]} 6. h3 {[%clk 0:02:55.1]} 6... e5 {[%clk 0:03:00]} 7.
Qd2 {[%clk 0:02:45.1]} 7... Ngf6 {[%clk 0:02:56.3]} 8. Be2 {[%clk 0:02:41.7]}
8... O-O {[%clk 0:02:55.5]} 9. O-O-O {[%clk 0:02:40.5]} 9... exd4 {[%clk
0:02:50.5]} 10. Nxd4 {[%clk 0:02:33.2]} 10... Re8 {[%clk 0:02:48.2]} 11. f3
{[%clk 0:02:32.2]} 11... c6 {[%clk 0:02:29.8]} 12. Bh6 {[%clk 0:02:24.9]} 12...
Nc5 {[%clk 0:01:44.8]} 13. Nf5 {[%clk 0:02:05.2]} 13... gxf5 {[%clk 0:01:27.9]}
14. Qg5 {[%clk 0:02:02.5]} 14... Ne6 {[%clk 0:01:27.5]} 15. Qg3 {[%clk
0:01:54.1]} 15... f4 {[%clk 0:01:22.2]} 16. Qh4 {[%clk 0:01:53.2]} 16... Bxh6
{[%clk 0:01:16.8]} 17. Qxh6 {[%clk 0:01:52.4]} 17... Qe7 {[%clk 0:01:13.6]} 18.
g4 {[%clk 0:01:28.9]} 18... Nd7 {[%clk 0:01:10.2]} 19. g5 {[%clk 0:01:13.4]}
19... Qf8 {[%clk 0:01:01.4]} 20. Qh5 {[%clk 0:01:08.7]} 20... Qg7 {[%clk
0:00:53.9]} 21. Rxd6 {[%clk 0:00:55]} 21... Ne5 {[%clk 0:00:53]} 22. Qh4 {[%clk
0:00:35.5]} 22... Kh8 {[%clk 0:00:48.4]} 23. Rhd1 {[%clk 0:00:31.2]} 23... Qxg5
{[%clk 0:00:39.5]} 24. Qf2 {[%clk 0:00:23.1]} 24... Rg8 {[%clk 0:00:34.7]} 25.
Qb6 {[%clk 0:00:12.6]} 25... Ng6 {[%clk 0:00:29.2]} 26. e5 {[%clk 0:00:10.2]}
26... Qxe5 {[%clk 0:00:27]} 27. Ne4 {[%clk 0:00:09.1]} 27... f5 {[%clk 0:00:25]}
28. Nc3 {[%clk 0:00:03.8]} 28... Qe3+ {[%clk 0:00:24]} 29. Kb1 {[%clk
0:00:02.6]} 29... Qxb6 {[%clk 0:00:23.5]} 0-1

[Event "*** Titled Tuesday Blitz"]
[Site "Chess.com"]
[Date "2021.03.09"]
[Round "4"]
[White "dolynachess"]
[Black "Geller_Jakov"]
[Result "0-1"]
[WhiteElo "2426"]
[BlackElo "2618"]
[TimeControl "180+1"]
[EndTime "10:41:26 PST"]
[Termination "Geller_Jakov won on time"]

1. d4 {[%clk 0:03:00.9]} 1... d5 {[%clk 0:02:59.7]} 2. c4 {[%clk 0:03:01.3]}
2... e6 {[%clk 0:03:00.3]} 3. g3 {[%clk 0:03:01.8]} 3... dxc4 {[%clk 0:02:58.2]}
4. Bg2 {[%clk 0:03:02]} 4... c6 {[%clk 0:02:58.5]} 5. Nf3 {[%clk 0:03:01.6]}
5... b5 {[%clk 0:02:58.6]} 6. O-O {[%clk 0:03:01.4]} 6... Bb7 {[%clk 0:02:58.8]}
7. Nc3 {[%clk 0:03:01.9]} 7... Nf6 {[%clk 0:02:56.1]} 8. e4 {[%clk 0:03:01.7]}
8... Nbd7 {[%clk 0:02:51]} 9. e5 {[%clk 0:03:01.6]} 9... Nd5 {[%clk 0:02:51.2]}
10. Ng5 {[%clk 0:03:02.2]} 10... Be7 {[%clk 0:02:44]} 11. Qh5 {[%clk 0:03:02.1]}
11... g6 {[%clk 0:02:44.2]} 12. Qh6 {[%clk 0:03:02.4]} 12... Bf8 {[%clk
0:02:41.7]} 13. Qh3 {[%clk 0:03:02.2]} 13... h5 {[%clk 0:02:18.3]} 14. Re1
{[%clk 0:02:52.2]} 14... Be7 {[%clk 0:02:18.2]} 15. Nce4 {[%clk 0:02:48]} 15...
Qb6 {[%clk 0:02:14.4]} 16. Nd6+ {[%clk 0:02:07.1]} 16... Bxd6 {[%clk 0:02:13.9]}
17. exd6 {[%clk 0:02:07.7]} 17... Nf8 {[%clk 0:01:33.4]} 18. Nxe6 {[%clk
0:01:48.7]} 18... fxe6 {[%clk 0:01:16.7]} 19. Rxe6+ {[%clk 0:01:48.5]} 19... Kf7
{[%clk 0:01:17]} 20. Bxd5 {[%clk 0:01:33.5]} 20... cxd5 {[%clk 0:01:17.4]} 21.
Re7+ {[%clk 0:00:56.7]} 21... Kg8 {[%clk 0:01:17.2]} 22. Bf4 {[%clk 0:00:35.2]}
22... Rh7 {[%clk 0:00:42.3]} 23. Rae1 {[%clk 0:00:33.9]} 23... Rd8 {[%clk
0:00:42]} 24. Qh4 {[%clk 0:00:26.4]} 24... Rxd6 {[%clk 0:00:26]} 25. Rxh7 {[%clk
0:00:19.4]} 25... Nxh7 {[%clk 0:00:26.3]} 26. Re8+ {[%clk 0:00:13.2]} 26... Nf8
{[%clk 0:00:24.3]} 27. Qe7 {[%clk 0:00:09.1]} 27... Rf6 {[%clk 0:00:18.6]} 28.
Bh6 {[%clk 0:00:03.9]} 28... Qxd4 {[%clk 0:00:17.4]} 0-1

[Event "*** Titled Tuesday Blitz"]
[Site "Chess.com"]
[Date "2021.03.09"]
[Round "4"]
[White "J36225"]
[Black "Korchmar_Vasiliy"]
[Result "1/2-1/2"]
[WhiteElo "2497"]
[BlackElo "2641"]
[TimeControl "180+1"]
[EndTime "10:41:28 PST"]
[Termination "Game drawn by repetition"]

1. e4 {[%clk 0:03:00.9]} 1... c5 {[%clk 0:03:00.5]} 2. Nf3 {[%clk 0:03:00.4]}
2... d6 {[%clk 0:03:01.1]} 3. Bb5+ {[%clk 0:02:59.6]} 3... Bd7 {[%clk
0:03:00.4]} 4. Bxd7+ {[%clk 0:02:59.2]} 4... Qxd7 {[%clk 0:03:01.3]} 5. c4
{[%clk 0:02:59.1]} 5... Nc6 {[%clk 0:03:01.1]} 6. d4 {[%clk 0:02:57.3]} 6...
cxd4 {[%clk 0:03:01.3]} 7. Nxd4 {[%clk 0:02:57.2]} 7... Nf6 {[%clk 0:03:01.6]}
8. Nc3 {[%clk 0:02:57]} 8... g6 {[%clk 0:03:02.1]} 9. f3 {[%clk 0:02:52.9]} 9...
Bg7 {[%clk 0:03:02.2]} 10. Be3 {[%clk 0:02:52.6]} 10... O-O {[%clk 0:03:02.2]}
11. b3 {[%clk 0:02:46.6]} 11... a6 {[%clk 0:02:59.8]} 12. Rc1 {[%clk 0:02:45.3]}
12... Nxd4 {[%clk 0:02:57.7]} 13. Bxd4 {[%clk 0:02:45]} 13... b5 {[%clk
0:02:58.3]} 14. O-O {[%clk 0:02:36.1]} 14... bxc4 {[%clk 0:02:57.4]} 15. bxc4
{[%clk 0:02:36.1]} 15... Rfc8 {[%clk 0:02:57.9]} 16. Qd3 {[%clk 0:02:29.3]}
16... Qe6 {[%clk 0:02:38.6]} 17. Nd5 {[%clk 0:02:24.2]} 17... Nd7 {[%clk
0:02:39]} 18. Bxg7 {[%clk 0:02:01.2]} 18... Kxg7 {[%clk 0:02:39.9]} 19. Qd4+
{[%clk 0:02:01.3]} 19... f6 {[%clk 0:02:32.6]} 20. Rb1 {[%clk 0:01:57.1]} 20...
Rab8 {[%clk 0:02:27.4]} 21. Rxb8 {[%clk 0:01:45.6]} 21... Rxb8 {[%clk
0:02:28.3]} 22. Qa7 {[%clk 0:01:45.5]} 22... Rb2 {[%clk 0:02:16.3]} 23. Qxa6
{[%clk 0:01:39.9]} 23... Ne5 {[%clk 0:02:02.9]} 24. Qa7 {[%clk 0:01:36.3]} 24...
Kf7 {[%clk 0:01:36.5]} 25. Qa8 {[%clk 0:01:27.7]} 25... Nxc4 {[%clk 0:01:14.8]}
26. Qh8 {[%clk 0:01:26.7]} 26... Qe5 {[%clk 0:01:09.3]} 27. Qxh7+ {[%clk
0:01:23.7]} 27... Ke8 {[%clk 0:01:09.8]} 28. Qxg6+ {[%clk 0:01:16.9]} 28... Kd8
{[%clk 0:01:10.2]} 29. Qg8+ {[%clk 0:01:08.6]} 29... Kd7 {[%clk 0:01:09.7]} 30.
Nxf6+ {[%clk 0:01:07.2]} 30... Qxf6 {[%clk 0:00:52.6]} 31. Qxc4 {[%clk
0:01:06.1]} 31... Qg5 {[%clk 0:00:53.1]} 32. Qa4+ {[%clk 0:00:46.6]} 32... Ke6
{[%clk 0:00:42.8]} 33. Qc4+ {[%clk 0:00:45.8]} 33... Kd7 {[%clk 0:00:41.3]} 34.
Qa4+ {[%clk 0:00:36.6]} 34... Kc7 {[%clk 0:00:39.4]} 35. Qa7+ {[%clk 0:00:31.1]}
35... Kd8 {[%clk 0:00:37.7]} 36. Qa8+ {[%clk 0:00:29.1]} 36... Kc7 {[%clk
0:00:30.5]} 37. Qa7+ {[%clk 0:00:26.8]} 37... Kc6 {[%clk 0:00:28.9]} 38. Qa6+
{[%clk 0:00:22.8]} 38... Kc7 {[%clk 0:00:21.3]} 39. Qa7+ {[%clk 0:00:22.2]}
1/2-1/2